Cogmind - Beta 10 @@@ ROGUE MODE // 2020.09.19 @ 05:31:09 Player: Morgweiler Result: Destroyed by L-31 Rogue with Katana Performance ------------- Evolutions (2) 1000 Regions Visited (4) 800 Robots Destroyed (68) 340 Value Destroyed (1787) 1787 Prototype IDs (3) 60 Alien Tech Used (0) 0 Bonus (60) 60 TOTAL SCORE: 4047 Bonus ------- Follower Combat Kills 60 Cogmind --------- Core Integrity 0/550 Matter 299/300 Energy 100/100 System Corruption 0% Temperature Cool (0) Movement Core (550) Ox10 Location -8/Materials Parts ------- > --- POWER (1) -------- (None) > --- PROPULSION (5) --- (None) > --- UTILITY (3) ------ High-capacity Storage Unit Signal Interpreter > --- WEAPON (2) ------- (None) > --- INVENTORY (12) --- Aluminum Leg High-capacity Storage Unit Improved Terrain Scanner Improved Terrain Scanner Advanced Terrain Scanner Armor Integrity Analyzer Field Recycling Unit (0) Peak State ------------ > --- POWER ------------ Light Nuclear Core > --- PROPULSION ------- Carbon-fiber Leg Improved Carbon-fiber Leg Improved Carbon-fiber Leg Improved Carbon-fiber Leg Improved Carbon-fiber Leg > --- UTILITY ---------- High-capacity Storage Unit Improved Terrain Scanner Advanced Targeting Computer > --- WEAPON ----------- Particle Gun Shotgun > --- INVENTORY -------- Light Ion Engine High-capacity Storage Unit Sensor Array Signal Interpreter Improved Terrain Scanner Advanced Terrain Scanner Armor Integrity Analyzer Field Recycling Unit Grenade Launcher Mining Laser [Rating: 33] Favorites ----------- Power Improved Ion Engine Engine Improved Ion Engine Power Core Light Nuclear Core Propulsion Aluminum Leg Treads Light Treads Leg Aluminum Leg Utility High-capacity Storage Unit Device Improved Terrain Scanner Storage High-capacity Storage Unit Processor Targeting Computer Weapon Heavy Assault Rifle Energy Gun Small Laser Ballistic Gun Heavy Assault Rifle Ballistic Cannon Light Cannon Launcher Grenade Launcher Special Weapon Mining Laser Build | -11 -10 -9 -9 -8 ------- Run | Scr Mat Mat Min Mat Slots Evolved 4 | . . 2 . 2 Power . | . . . . . Propulsion 3 | . . 2 . 1 Utility 1 | . . . . 1 Weapon . | . . . . . Parts Attached 87 | 9 8 19 20 31 Power 12 | 1 1 3 3 4 Engine 5 | 1 . 2 2 . Core 7 | . 1 1 1 4 Reactor . | . . . . . Propulsion 34 | 2 2 8 10 12 Treads 4 | . . 2 . 2 Leg 30 | 2 2 6 10 10 Wheel . | . . . . . Hover . | . . . . . Flight . | . . . . . Utility 11 | 4 2 1 . 4 Device 3 | 1 . . . 2 Storage 3 | 2 1 . . . Processor 5 | 1 1 1 . 2 Hackware . | . . . . . Protection . | . . . . . Artifact . | . . . . . Weapon 30 | 2 3 7 7 11 Energy Gun 7 | . 1 1 1 4 Energy Cannon . | . . . . . Ballistic Gun 15 | 2 1 4 3 5 Ballistic Cannon 1 | . 1 . . . Launcher 3 | . . 1 1 1 Special Weapon 4 | . . 1 2 1 Impact Weapon . | . . . . . Slashing Weapon . | . . . . . Piercing Weapon . | . . . . . Special Melee Weapon . | . . . . . Unidentified Prototypes . | . . . . . Parts Lost 25 | . 1 3 . 21 Power 3 | . . . . 3 Propulsion 11 | . . 3 . 8 Utility 2 | . . . . 2 Weapon 9 | . 1 . . 8 Highest Loss Streak 7 | . 1 1 . 7 Average Slot Usage (%) 95 | . 100 95 99 87 Engine 6 | . 6 6 10 3 Core 3 | . 7 3 . 3 Treads 2 | . . 5 . 2 Leg 36 | . 28 34 43 35 Device 1 | . . . . 6 Storage 11 | . 14 11 11 9 Processor 11 | . 13 11 11 11 Energy Gun 4 | . 3 4 3 4 Ballistic Gun 14 | . 16 15 17 9 Ballistic Cannon 1 | . 7 . . . Naked Turns . | . . . . . Heaviest Build 45 | 15 42 45 45 44 Greatest Support 87 | 20 20 40 40 87 Greatest Overweight (x) 3 | . 2 1 1 3 Average Overweight (x) . | . 1 . . . Largest Inventory Capacity 12 | 8 12 12 12 12 Average Capacity 11 | 6 11 12 12 12 Most Carried 12 | 6 12 12 12 12 Average Carried 10 | 2 9 10 11 10 Final Capacity 12 | 6 12 12 12 12 Final Carried 12 | 5 12 12 12 7 Class Distribution -------------------- 74% | Scavenger-Mutant 25% | Mutant Dominant Class ---------------- Mutant | -10/Materials Scavenger-Mutant | -9/Materials Scavenger-Mutant | -9/Mines Scavenger-Mutant | -8/Materials Resources | -11 -10 -9 -9 -8 ----------- Run | Scr Mat Mat Min Mat Matter Collected 1773 | 328 176 373 402 494 Remotely . | . . . . . Salvage Created 2406 | 101 207 512 661 925 Parts 151 | 7 11 37 43 53 Haulers Intercepted . | . . . . . Recyclers Shooed 3 | 1 1 1 . . Parts Field Recycled . | . . . . . Retrieved Matter . | . . . . . Parts Self-Destructed . | . . . . . Prevented . | . . . . . Kills | -11 -10 -9 -9 -8 ------- Run | Scr Mat Mat Min Mat Combat Hostiles Destroyed 49 | . 6 7 14 22 Guns 43 | . 2 7 14 20 Cannons 4 | . 4 . . . AOE 2 | . . . . 2 Classes Destroyed 11 | 2 2 3 1 3 Worker 7 | . . 1 3 3 Builder 2 | . . 1 1 . Tunneler 4 | 3 . . 1 . Recycler 3 | 1 . 2 . . Operator 1 | . . . . 1 Watcher 2 | . 1 . . 1 Swarmer 13 | . . . 9 4 Grunt 26 | . 6 4 5 11 Brawler 1 | . . . . 1 Duelist 2 | . . . . 2 Sentry 7 | . . 3 . 4 Best Kill Streak 9 | 3 3 4 6 9 Combat Bots Only 9 | . 2 3 4 9 Max Kills in Single Turn 2 | 1 1 1 1 2 Gunslinging . | . . . . . Exploded 2 | . . . . 2 Melee . | . . . . . Uniques/NPCs Destroyed . | . . . . . Combat | -11 -10 -9 -9 -8 -------- Run | Scr Mat Mat Min Mat Damage Taken 4020 | . 512 445 397 2666 Core 794 | . 92 89 59 554 Absorbed by Shields . | . . . . . Core Remaining (%) 75 | 100 63 . 63 . Volleys Fired 267 | 19 35 41 53 119 Largest 2 | 2 2 2 2 2 Hottest 123 | 40 55 63 100 123 Shots Fired 443 | 38 70 74 97 164 Gun 388 | 38 39 68 88 155 Cannon 31 | . 31 . . . Launcher 4 | . . 1 . 3 Special 20 | . . 5 9 6 Kinetic 301 | 38 70 40 68 85 Thermal 138 | . . 33 29 76 Explosive 4 | . . 1 . 3 Electromagnetic . | . . . . . Robot Hit Streak 18 | 5 7 15 9 18 Robot Miss Streak 3 | 3 2 2 2 3 Penetration Max . | . . . . . Secondary Targets 1 | . . . . 1 Max Gunslinging Chain 1 | . . . . 1 Shots Hit Robots 311 | 24 49 53 56 129 Core Hits 136 | 8 16 21 30 61 Critical Hits 2 | 1 . . . 1 Critical Kills 1 | . . . . 1 Critical Parts Destroyed 1 | 1 . . . . Melee Attacks . | . . . . . Impact . | . . . . . Slashing . | . . . . . Piercing . | . . . . . Sneak Attacks . | . . . . . Combat Hostiles . | . . . . . Follow-up Attacks . | . . . . . Damage Inflicted 4083 | 148 535 705 616 2079 Guns 3446 | 148 222 688 603 1785 Cannons 313 | . 313 . . . Explosions 239 | . . 17 . 222 Melee . | . . . . . Ramming . | . . . . . Kinetic 2535 | 148 535 446 460 946 Thermal 1309 | . . 242 156 911 Explosive 239 | . . 17 . 222 Electromagnetic . | . . . . . Impact . | . . . . . Slashing . | . . . . . Piercing . | . . . . . Highest Corruption . | . . . . . Average Corruption . | . . . . . Corruption Purged . | . . . . . Overload Shots . | . . . . . Overflow Damage 8 | . . . . 8 Projectiles . | . . . . . Explosions 8 | . . . . 8 Melee . | . . . . . Knockbacks 6 | . 6 . . . Impact . | . . . . . Kinetic 6 | . 6 . . . Secondary . | . . . . . Self-Inflicted Damage 78 | . . . . 78 Shots 3 | . . . . 3 Rammed . | . . . . . Targets Rammed . | . . . . . Kicked . | . . . . . Crushed . | . . . . . Highest Temperature 354 | . 228 41 96 354 Average Temperature 80 | . 77 19 31 114 Received Heat Transfer 1500 | . 282 186 114 918 Effects 5 | . . . . 5 Shutdowns 1 | . . . . 1 Energy Bleed 2 | . . . . 2 Short Circuit 2 | . . . . 2 Siege Activations . | . . . . . Robots Corrupted . | . . . . . Combat Hostiles . | . . . . . Parts Fried . | . . . . . Impact Corruptions . | . . . . . Robots Melted . | . . . . . Combat Hostiles . | . . . . . Parts Melted 4 | . . . 1 3 Heat Transferred 3168 | . . 550 470 2148 Parts Sabotaged . | . . . . . Parts Stolen . | . . . . . Parts Stripped . | . . . . . Power Chain Reactions . | . . . . . Missiles Intercepted . | . . . . . Alert | -11 -10 -9 -9 -8 ------- Run | Scr Mat Mat Min Mat Peak Influence 297 | 20 150 205 276 297 Initial 48 | . 13 27 19 48 Average 93 | 11 76 67 132 105 Maximum Alert Level 1 | . . 1 1 1 Low Security (%) 91 | 100 100 98 77 91 Level 1 8 | . . 1 22 8 Level 2 . | . . . . . Level 3 . | . . . . . Level 4 . | . . . . . Level 5 . | . . . . . High Security . | . . . . . Max Security . | . . . . . Squads Dispatched 9 | . 1 2 . 6 Investigation 1 | . . 1 . . Extermination . | . . . . . Reinforcement 5 | . 1 1 . 3 Assault . | . . . . . Garrison 3 | . . . . 3 Intercept . | . . . . . Construction Impeded 2 | . . . . 2 Haulers Reinforced . | . . . . . Stealth | -11 -10 -9 -9 -8 --------- Run | Scr Mat Mat Min Mat Distress Signals 6 | . . . 2 4 Communications Jammed . | . . . . . Distress Signals . | . . . . . Times Spotted 79 | . 10 12 19 38 Peak Tracking Total 6 | . 3 4 4 6 Tactical Retreats 8 | . 1 1 2 4 Traps | -11 -10 -9 -9 -8 ------- Run | Scr Mat Mat Min Mat Traps Triggered 2 | . . 2 . . Indirectly . | . . . . . Trap Hack Attempts . | . . . . . Triggered . | . . . . . Disarmed 1 | . 1 . . . Reprogrammed . | . . . . . Reused . | . . . . . Traps Extracted . | . . . . . Installed . | . . . . . Triggered . | . . . . . Machines | -11 -10 -9 -9 -8 ---------- Run | Scr Mat Mat Min Mat Machines Disabled . | . . . . . Max in Single Turn . | . . . . . Machines Sabotaged . | . . . . . Garrisons Compromised . | . . . . . Overloaded Fab Kills . | . . . . . Fab Network Shutdowns . | . . . . . Hacking | -11 -10 -9 -9 -8 --------- Run | Scr Mat Mat Min Mat Machines Accessed 10 | . 5 3 . 2 Terminals 7 | . 3 2 . 2 Fabricators . | . . . . . Repair Stations . | . . . . . Recycling Units 2 | . 2 . . . Scanalyzers 1 | . . 1 . . Garrison Access . | . . . . . Total Hacks 35 | . 14 15 . 6 Successful 21 | . 8 11 . 2 Failed 14 | . 6 4 . 4 Catastrophic 3 | . 1 . . 2 Database Lockouts . | . . . . . Manual . | . . . . . Terminals 21 | . 10 5 . 6 Fabricators . | . . . . . Repair Stations . | . . . . . Recycling Units 4 | . 4 . . . Scanalyzers 10 | . . 10 . . Garrison Access . | . . . . . Terminal Hacks 7 | . 4 1 . 2 Prototype ID Bank 2 | . 1 . . 1 Branch Access Points 1 | . . . . 1 Unreport Threat 1 | . . 1 . . Disarm Traps 1 | . 1 . . . Registered Components 1 | . 1 . . . Zone Layout 1 | . 1 . . . Fabricator Hacks . | . . . . . Repair Station Hacks . | . . . . . Recycling Unit Hacks 4 | . 4 . . . Process 1 | . 1 . . . Report Inventory 1 | . 1 . . . Retrieve Matter 1 | . 1 . . . Retrieve Components 1 | . 1 . . . Scanalyzer 10 | . . 10 . . Insert Component 5 | . . 5 . . Analyze 5 | . . 5 . . Garrison Access Hacks . | . . . . . Unauthorized Hacks . | . . . . . Terminals . | . . . . . Fabricators . | . . . . . Repair Stations . | . . . . . Recycling Units . | . . . . . Scanalyzers . | . . . . . Garrison Access . | . . . . . Data Cores Recovered . | . . . . . Used . | . . . . . Hacking Detections 10 | . 5 3 . 2 Full Trace Events . | . . . . . Feedback Events . | . . . . . Feedback Blocked . | . . . . . Robot Schematics Acquired . | . . . . . Robots Built . | . . . . . Matter . | . . . . . Time . | . . . . . Total Robot Build Rating . | . . . . . Part Schematics Acquired 4 | . . 4 . . Parts Built . | . . . . . Matter . | . . . . . Time . | . . . . . Total Part Build Rating . | . . . . . Parts Repaired . | . . . . . Time . | . . . . . Parts Recycled . | . . . . . Recycled Matter 17 | . 17 . . . Retrieved Matter 17 | . 17 . . . Retrieved Components 1 | . 1 . . . Parts Scanalyzed 5 | . . 5 . . Part Schematics Acquired 4 | . . 4 . . Parts Damaged . | . . . . . Bothacking | -11 -10 -9 -9 -8 ------------ Run | Scr Mat Mat Min Mat Used RIF Installer . | . . . . . Robots Hacked . | . . . . . Non-combat . | . . . . . Combat . | . . . . . Robot Hacks Applied . | . . . . . Relay Couplers Released . | . . . . . Robots Rewired . | . . . . . Allies Hacked . | . . . . . Hacks Repelled . | . . . . . Allies | -11 -10 -9 -9 -8 -------- Run | Scr Mat Mat Min Mat Total Allies 2 | . . . 2 . Largest Group 2 | . . . 2 2 Highest-Rated Group 47 | . . . 47 47 Highest-Rated Ally 31 | . . . 31 31 Total Orders . | . . . . . Ally Attacks 7 | . . . 5 2 Total Damage 85 | . . . 63 22 Kills 2 | . . . 2 . Allies Corrupted . | . . . . . Allies Melted . | . . . . . Intel | -11 -10 -9 -9 -8 ------- Run | Scr Mat Mat Min Mat Robot Analysis Total . | . . . . . Derelict Logs Recovered 1 | . . . 1 . Drone Launches . | . . . . . Drone Recoveries . | . . . . . Exploration | -11 -10 -9 -9 -8 ------------- Run | Scr Mat Mat Min Mat Turns Passed 3057 | 154 573 742 856 732 Spaces Moved 1454 | 73 264 375 463 279 Core 4 | 4 . . . . Treads 4 | . . . . 4 Legs 1446 | 69 264 375 463 275 Wheels . | . . . . . Hover . | . . . . . Flight . | . . . . . Fastest Speed 50 | 50 120 120 120 120 Average Speed 140 | 116 158 146 136 127 Slowest Speed 210 | 120 180 150 150 210 Overloaded Moves . | . . . . . Propulsion Burnouts . | . . . . . Robots Hopped . | . . . . . Cave-ins Triggered . | . . . . . Exploration Rate (%) 37 | 5 43 26 84 28 Regions Visited 4 Branch Regions 1 Pre-discovered Areas . | . . . . . Known Exits Taken . | . . . . . Unknown Exits Taken 4 | 1 1 1 1 . Scrap Searched 1 | . . . 1 . Spaces Dug 13 | . . 9 4 . Terrain Destroyed 27 | . . 9 4 14 Melee . | . . . . . Projectile 6 | . . . 4 2 AOE 21 | . . 9 . 12 Terrain Rammed . | . . . . . Walls Destroyed . | . . . . . Machines Disabled . | . . . . . Actions | -11 -10 -9 -9 -8 --------- Run | Scr Mat Mat Min Mat Total 2018 | 108 354 488 584 484 Wait 128 | . 37 36 24 31 Move 1450 | 72 263 374 462 279 Hop . | . . . . . Pick Up 37 | 7 8 9 6 7 Fast Attach 25 | 7 . 6 2 10 Attach 10 | . 1 2 . 7 Detach 3 | . . . . 3 Swap 52 | 2 7 11 18 14 Drop 43 | 1 3 9 16 14 Fire 267 | 19 35 41 53 119 Melee . | . . . . . Ram . | . . . . . Kick . | . . . . . Crush . | . . . . . Escape Stasis . | . . . . . Rewire 3 | . . . 3 . Trap . | . . . . . Miscellaneous . | . . . . . Route ------- -11/Scrapyard -10/Materials (discovered 2 exits: *Mat x2) -9/Materials -9/Mines (discovered 2 exits: *Mat x2) -8/Materials History --------- Turn | Location | Event 6 | -11/Scrapyard | Discovered new exit (range 15) 155 | -11/Scrapyard | Entered Materials 307 | -10/Materials | Build established: Mutant 374 | -10/Materials | Discovered new exit (range 5) 691 | -10/Materials | Discovered new exit (range 15) 728 | -10/Materials | Entered another Materials area 728 | -9/Materials | Evolved 2 slots: Propulsion x2 1199 | -9/Materials | Build established: Scavenger-Mutant 1331 | -9/Materials | Discovered new exit (range 6) 1470 | -9/Materials | Entered Mines 1703 | -9/Mines | Learned Materials trap positions 1796 | -9/Mines | Excavation squad dispatched 1796 | -9/Mines | A large section of the Mines collapsed 2046 | -9/Mines | Excavation squad dispatched 2220 | -9/Mines | Discovered new exit (range 7) 2263 | -9/Mines | Discovered new exit (range 10) 2326 | -9/Mines | Entered Materials 2326 | -8/Materials | Accompanied by 2 allies 2326 | -8/Materials | Evolved 2 slots: Propulsion x1, Utility x1 2327 | -8/Materials | Loaded intel: 15 trap records 2331 | -8/Materials | Led the pair of lost Derelicts to an unsafe place 2829 | -8/Materials | Garrison activated, responded to threat 2880 | -8/Materials | Lost 7 parts (1p3n1u2w) 2949 | -8/Materials | Core integrity fell below 50% 3044 | -8/Materials | Core integrity fell below 20% 3049 | -8/Materials | Lost 7 parts (2p3n2w) 3058 | -8/Materials | Destroyed by L-31 Rogue with Katana Last Messages --------------- 03031_ G-47 Trooper destroyed. 03031_ U-05 Engineer lays Concrete. 03039_ W-25 Informer sends out distress signal. 03039_ Acquired 36 matter. 03039_ U-05 Engineer lays Concrete. 03040_ Acquired 4 matter. 03040_ U-05 Engineer lays Concrete. 03043_ Acquired Hvy. Assault Rifle. 03044_ U-05 Engineer lays Concrete. 03045_ U-05 Engineer builds a Wall. 03048_ B-36 Bruiser destroyed. 03048_ Switching to secondary target: L-31 Rogue. 03049_ ALERT: Construction progress impeded, dispatching reinforcements to local area. 03049_ Aluminum Leg destroyed. 03050_ Adv. Targeting Computer destroyed. 03052_ Particle Gun destroyed. 03053_ Aluminum Leg destroyed. 03055_ U-05 Engineer lays Concrete. 03057_ Hvy. Assault Rifle destroyed. Map ----- +----------------------------------------------------+ | ??# #??????????????????????????????????????????? | | ??# #??????????????????????????????????????????? | | #?# #????????????????????????????????????????^?? | | #?# #??????????????????????????????????????????^ | | #?# #?????????????????????????????????????????^? | | #?# +?????????????????????^????????????????????? | | #?# #??????????????????????????????????????????? | | #?# #??????????????????????????????????????????? | | ### ##???????????????? ??????????????????????? | | ##% / #???????????????? ??????????????????????? | | #???????????????? ??????????????????????? | | #???????????????? ??????????????????????? | | #???????????????# ??????????????????????? | | ## #????????######## """????????????????????? | | ###### #????????# # """" #????????????????? | | =% #????????# # """" +????????????????? | | ###### #????????# """ # #????????????????? | | ?????# #????????# """=# #????????????????? | | ?????# #????????# *"=*=# #????????????????? | | ????## ####?????# [ # """ #????????????????? | | ????# ##########+### "T ###??????????????? | | ????# % %% """ [ #??????????????? | | ????# T% a[=% ####???????????? | | ????# %%% s= "%" ?????????? | | #???# ##############l%= #######?????????????? | | #######+###?????????#?#/%@=###???????????????????? | | #???????? * #????????????????????? | | """ #?????# "" #???????????????????? | | """ #?????? "Gg g u# #???????????????????? | | """ #?????# "" ! # ###????#??????????????? | | #?????# #% #?????????????????????? | | """ #?????? =! + #?????????????????????? | | """ #???#?# !! # #?????????????????????? | | """ #?????# ! # #?????????????????????? | | ? ? #??#??# [ # #????#????????????????? | | ???#####??????########## ##########????????????? | | ######################## ?????????? | | + == ?????????? | | ###################+## ######????????????????? | | #???????#?????# # #?????????????????????? | | #????#????????# """ # #?????????????????????? | | #?????#???????# """ # #?????????????????????? | | ###?????????????# """ #####?????????????????????? | | ????????????????# """ #?????????????????????????? | | ????????????????# #?????????????????????????? | | ?????????#??????########?????????????????????????? | | ?????????????#???????????????#???????????????????? | | ?????????????????????????????????????????????????? | | ?????????????????????????????????????????????????? | | ???????????#?????????????????????????????????????? | +----------------------------------------------------+ Best States ------------- Heat Dissipation 31 Energy Generation 14 Energy Capacity 265 Matter Stores 300 Matter Capacity 300 Sight Range 16 Robot Scan Range 13 Terrain Scan Range 16 Terrain Scan Density 60 Evasion (%) 40 Targeting Accuracy 8 Recoil Reduction 2 Item Schematics ----------------- Hcp. Storage Unit | -9/Materials | Scanalyzed Grenade Launcher | -9/Materials | Scanalyzed Lgt. Assault Rifle | -9/Materials | Scanalyzed Assault Rifle | -9/Materials | Scanalyzed Robot Schematics ------------------ None Fabricated ------------ Nothing Alien Tech Used ----------------- None Achievements -------------- None Challenges ------------ None Game ------ Seed MetafieldDisruptorPit Manual? 0 Play Time 00:39:47 Cumulative 19.7 hours Start 2020.09.19 @ 04:54:53 End 2020.09.19 @ 05:31:09 Sessions 1 Manual Loads 0 Difficulty Rogue Special Mode None Game No. 21 Rogue 13 Adventurer 4 Explorer 4 Win Type - Total 0 Types 0/0/0/0/0/0/0/0/0 Lore% 18 Gallery% 23 Achievement% 18 Wizard Run 0 Options --------- ASCII 0 Keyboard 1 Movement Numpad Keybinds 0 Fullscreen 2 Font 18/SmallcapsGlow Map View 76x50 Tactical HUD 1 Map Filters NONE Filters NONE Steam 1 RUN: bea1bdc8-e301-42dd-9f0e-6113531a0e2a